[Event "Queens Festival Europe 2022"]
[Site "Tornelo"]
[Date "2022.06.19"]
[Round "5.12"]
[White "Tani, Selina"]
[Black "Jithendra, Raina"]
[Result "1-0"]
[ECO "C22"]
[WhiteElo "1146"]
[BlackElo "1306"]
[Annotator "NA RC"]
[PlyCount "63"]
[EventDate "2022.06.19"]
[EventType "swiss"]
[EventCountry "NET"]
[SourceTitle "playchess.com"]
[Source "ChessBase"]
[SourceQuality "1"]
[TimeControl "180+2"]

1. e4 {[%emt 0:00:02]} e5 {[%emt 0:00:05]} 2. d4 {[%emt 0:00:03]} exd4 {[%emt 0:00:02]} 3. Qxd4 {[%emt 0:00:01]} Nc6 {[%emt 0:00:14]} 4. Qe3 {[%emt 0:00:02]} Nf6 {[%emt 0:00:06]} 5. Nc3 {[%emt 0:00:02]} d6 {[%emt 0:00:11]} 6. Bd2 {[%emt 0:00:02]} Be6 {[%emt 0:00:04]} 7. O-O-O {[%emt 0:00:04]} Be7 {[%emt 0:00:03]} 8. h3 {[%emt 0:00:04]} O-O {[%emt 0:00:08]} 9. f4 {[%emt 0:00:04]} d5 {[%emt 0:00:33]} 10. exd5 {[%emt 0:00:09]} Nxd5 {[%emt 0:00:11]} 11. Nxd5 {[%emt 0:00:04]} Qxd5 {[%emt 0:00:06]} 12. c4 {[%emt 0:00:09]} Qf5 {[%emt 0:00:28]} 13. Bd3 {[%emt 0:00:04]} Qf6 {[%emt 0:00:08]} 14. Bc3 {[%emt 0:00:04]} Qh6 {[%emt 0:00:10]} 15. Nf3 {[%emt 0:00:19]} Bd6 {[%emt 0:00:19]} 16. Ne5 {[%emt 0:00:18]} Nxe5 {[%emt 0:00:03]} 17. Bxe5 {[%emt 0:00:03]} Bxe5 {[%emt 0:00:05]} 18. Qxe5 {[%emt 0:00:01]} c6 {[%emt 0:00:09]} 19. Rhf1 {[%emt 0:00:07]} Qh4 {[%emt 0:00:18]} 20. b3 {[%emt 0:00:27]} Qg3 {[%emt 0:00:04]} 21. Qe4 {[%emt 0:00:06]} g6 {[%emt 0:00:06]} 22. Qf3 {[%emt 0:00:18]} Qxf3 {[%emt 0:00:04]} 23. Rxf3 {[%emt 0:00:04]} Rad8 {[%emt 0:00:02]} 24. Kc2 {[%emt 0:00:12]} Rd7 {[%emt 0:00:04]} 25. g4 {[%emt 0:00:02]} Rfd8 {[%emt 0:00:02]} 26. Be2 {[%emt 0:00:09]} Rxd1 {[%emt 0:00:04]} 27. Bxd1 {[%emt 0:00:01]} f5 {[%emt 0:00:02]} 28. gxf5 {[%emt 0:00:05]} Bxf5+ {[%emt 0:00:02]} 29. Kc1 {[%emt 0:00:03]} Rd4 {[%emt 0:00:02]} 30. Bc2 {[%emt 0:00:04]} Bxc2 {[%emt 0:00:05]} 31. Kxc2 {[%emt 0:00:01]} Re4 {[%emt 0:00:02]} 32. Kd3 {[%emt 0:00:03]} 1-0

[Event "Queens Festival Europe 2022"]
[Site "Tornelo"]
[Date "2022.06.19"]
[Round "5.18"]
[White "Ismayilova, Salbinaz"]
[Black "Morling, Aase"]
[Result "1-0"]
[ECO "C78"]
[WhiteElo "1090"]
[BlackElo "1416"]
[Annotator "NA RC"]
[PlyCount "79"]
[EventDate "2022.06.19"]
[EventType "swiss"]
[EventCountry "NET"]
[SourceTitle "playchess.com"]
[Source "ChessBase"]
[SourceQuality "1"]
[TimeControl "180+2"]

1. e4 {[%emt 0:00:02]} e5 {[%emt 0:00:11]} 2. Nf3 {[%emt 0:00:03]} Nc6 {[%emt 0:00:03]} 3. Bb5 {[%emt 0:00:01]} a6 {[%emt 0:00:03]} 4. Ba4 {[%emt 0:00:02]} Nf6 {[%emt 0:00:03]} 5. d3 {[%emt 0:00:02]} b5 {[%emt 0:00:04]} 6. Bb3 {[%emt 0:00:02]} Bc5 {[%emt 0:00:04]} 7. c3 {[%emt 0:00:04]} d6 {[%emt 0:00:04]} 8. O-O {[%emt 0:00:04]} O-O {[%emt 0:00:04]} 9. Re1 {[%emt 0:00:03]} Bg4 {[%emt 0:00:15]} 10. Nbd2 {[%emt 0:00:03]} Na5 {[%emt 0:00:07]} 11. Bc2 {[%emt 0:00:03]} d5 {[%emt 0:00:11]} 12. exd5 {[%emt 0:00:11]} Nxd5 {[%emt 0:00:15]} 13. Rxe5 {[%emt 0:00:15]} Bd6 {[%emt 0:00:07]} 14. Re1 {[%emt 0:00:07]} Bxf3 {[%emt 0:00:10]} 15. Qxf3 {[%emt 0:00:05]} Nf6 {[%emt 0:00:05]} 16. Nf1 {[%emt 0:00:03]} Re8 {[%emt 0:00:08]} 17. Rxe8+ {[%emt 0:00:08]} Qxe8 {[%emt 0:00:05]} 18. Bg5 {[%emt 0:00:05]} Qe7 {[%emt 0:00:08]} 19. Qxa8+ {[%emt 0:00:05]} Qe8 {[%emt 0:00:09]} 20. Qxe8+ {[%emt 0:00:03]} Nxe8 {[%emt 0:00:04]} 21. Re1 {[%emt 0:00:02]} Kf8 {[%emt 0:00:07]} 22. Ng3 {[%emt 0:00:06]} f6 {[%emt 0:00:04]} 23. Be3 {[%emt 0:00:04]} Bxg3 {[%emt 0:00:03]} 24. fxg3 {[%emt 0:00:04]} Nc6 {[%emt 0:00:04]} 25. Bb3 {[%emt 0:00:03]} Ne5 {[%emt 0:00:04]} 26. Bc5+ {[%emt 0:00:02]} Nd6 {[%emt 0:00:09]} 27. Bxd6+ {[%emt 0:00:02]} cxd6 {[%emt 0:00:05]} 28. d4 {[%emt 0:00:01]} Nd3 {[%emt 0:00:10]} 29. Re2 {[%emt 0:00:04]} g6 {[%emt 0:00:09]} 30. Bc2 {[%emt 0:00:12]} Nc1 {[%emt 0:00:07]} 31. Re1 {[%emt 0:00:05]} Nxa2 {[%emt 0:00:05]} 32. Ra1 {[%emt 0:00:02]} b4 {[%emt 0:00:07]} 33. Rxa2 {[%emt 0:00:03]} bxc3 {[%emt 0:00:03]} 34. bxc3 {[%emt 0:00:02]} Ke7 {[%emt 0:00:06]} 35. Rxa6 {[%emt 0:00:02]} f5 {[%emt 0:00:06]} 36. Ra7+ {[%emt 0:00:02]} Ke6 {[%emt 0:00:04]} 37. Rxh7 {[%emt 0:00:03]} d5 {[%emt 0:00:07]} 38. h4 {[%emt 0:00:03]} Kf6 {[%emt 0:00:03]} 39. h5 {[%emt 0:00:06]} gxh5 {[%emt 0:00:07]} 40. Rxh5 {[%emt 0:00:02]} 1-0

[Event "Queens Festival Europe 2022"]
[Site "Tornelo"]
[Date "2022.06.19"]
[Round "6.1"]
[White "Ibrahimova, Sabina"]
[Black "Gueci, Tea"]
[Result "1-0"]
[ECO "B33"]
[WhiteElo "2146"]
[BlackElo "2248"]
[Annotator "NA RC"]
[PlyCount "119"]
[EventDate "2022.06.19"]
[EventType "swiss"]
[EventCountry "NET"]
[SourceTitle "playchess.com"]
[Source "ChessBase"]
[SourceQuality "1"]
[TimeControl "180+2"]

1. e4 {[%emt 0:00:02]} c5 {[%emt 0:00:04]} 2. Nf3 {[%emt 0:00:02]} Nc6 {[%emt 0:00:01]} 3. d4 {[%emt 0:00:02]} cxd4 {[%emt 0:00:00]} 4. Nxd4 {[%emt 0:00:02]} Nf6 {[%emt 0:00:01]} 5. Nc3 {[%emt 0:00:01]} e5 {[%emt 0:00:02]} 6. Ndb5 {[%emt 0:00:02]} d6 {[%emt 0:00:02]} 7. Bg5 {[%emt 0:00:04]} a6 {[%emt 0:00:02]} 8. Na3 {[%emt 0:00:02]} b5 {[%emt 0:00:01]} 9. Nd5 {[%emt 0:00:02]} Be7 {[%emt 0:00:02]} 10. Bxf6 {[%emt 0:00:01]} Bxf6 {[%emt 0:00:02]} 11. c4 {[%emt 0:00:01]} b4 {[%emt 0:00:02]} 12. Nc2 {[%emt 0:00:02]} O-O {[%emt 0:00:03]} 13. g3 {[%emt 0:00:02]} Rb8 {[%emt 0:00:03]} 14. b3 {[%emt 0:00:03]} a5 {[%emt 0:00:06]} 15. Bg2 {[%emt 0:00:01]} g6 {[%emt 0:00:08]} 16. O-O {[%emt 0:00:06]} Bg7 {[%emt 0:00:03]} 17. Qd3 {[%emt 0:00:26]} Be6 {[%emt 0:00:10]} 18. Nce3 {[%emt 0:00:30]} Nd4 {[%emt 0:00:07]} 19. Rad1 {[%emt 0:00:02]} f5 {[%emt 0:00:08]} 20. f4 {[%emt 0:00:09]} Kh8 {[%emt 0:00:29]} 21. g4 {[%emt 0:01:14]} Qd7 {[%emt 0:00:28]} 22. exf5 {[%emt 0:00:18]} gxf5 {[%emt 0:00:03]} 23. g5 {[%emt 0:00:01]} e4 {[%emt 0:00:11]} 24. Qd2 {[%emt 0:00:04]} Nc6 {[%emt 0:00:19]} 25. Qf2 {[%emt 0:00:06]} Bg8 {[%emt 0:00:24]} 26. Kh1 {[%emt 0:00:02]} Qe6 {[%emt 0:00:14]} 27. Qh4 {[%emt 0:00:08]} Qg6 {[%emt 0:00:03]} 28. Bh3 {[%emt 0:00:11]} Be6 {[%emt 0:00:04]} 29. Rg1 {[%emt 0:00:04]} Rb7 {[%emt 0:00:04]} 30. Rd2 {[%emt 0:00:03]} Nd4 {[%emt 0:00:02]} 31. Bg2 {[%emt 0:00:03]} a4 {[%emt 0:00:13]} 32. Nf6 {[%emt 0:00:03]} Nf3 {[%emt 0:00:17]} 33. Bxf3 {[%emt 0:00:02]} exf3 {[%emt 0:00:00]} 34. Nh5 {[%emt 0:00:01]} axb3 {[%emt 0:00:02]} 35. axb3 {[%emt 0:00:02]} Ra7 {[%emt 0:00:01]} 36. Nxg7 {[%emt 0:00:03]} Rxg7 {[%emt 0:00:01]} 37. Rxd6 {[%emt 0:00:02]} Re8 {[%emt 0:00:03]} 38. Qf2 {[%emt 0:00:01]} Qf7 {[%emt 0:00:01]} 39. Rgd1 {[%emt 0:00:02]} Bc8 {[%emt 0:00:02]} 40. Qxf3 {[%emt 0:00:02]} Bb7 {[%emt 0:00:01]} 41. Nd5 {[%emt 0:00:01]} Qe7 {[%emt 0:00:04]} 42. Rh6 {[%emt 0:00:02]} Qe4 {[%emt 0:00:03]} 43. Qxe4 {[%emt 0:00:02]} fxe4 {[%emt 0:00:01]} 44. Nf6 {[%emt 0:00:02]} e3+ {[%emt 0:00:01]} 45. Kg1 {[%emt 0:00:02]} Rf8 {[%emt 0:00:04]} 46. Re1 {[%emt 0:00:02]} Ra8 {[%emt 0:00:04]} 47. Rxe3 {[%emt 0:00:03]} Ra1+ {[%emt 0:00:01]} 48. Kf2 {[%emt 0:00:01]} Ra2+ {[%emt 0:00:02]} 49. Re2 {[%emt 0:00:02]} Rxe2+ {[%emt 0:00:01]} 50. Kxe2 {[%emt 0:00:01]} Re7+ {[%emt 0:00:01]} 51. Kd3 {[%emt 0:00:01]} Bf3 {[%emt 0:00:04]} 52. c5 {[%emt 0:00:02]} Bd1 {[%emt 0:00:03]} 53. Kc4 {[%emt 0:00:02]} Rb7 {[%emt 0:00:04]} 54. c6 {[%emt 0:00:02]} Rc7 {[%emt 0:00:03]} 55. Kc5 {[%emt 0:00:01]} Bc2 {[%emt 0:00:04]} 56. Kd6 {[%emt 0:00:02]} Rc8 {[%emt 0:00:03]} 57. c7 {[%emt 0:00:02]} Rf8 {[%emt 0:00:00]} 58. Ke7 {[%emt 0:00:02]} Bf5 {[%emt 0:00:00]} 59. Kxf8 {[%emt 0:00:02]} Bc8 {[%emt 0:00:03]} 60. Rxh7# {[%emt 0:00:02]} 1-0

[Event "Queens Festival Europe 2022"]
[Site "Tornelo"]
[Date "2022.06.19"]
[Round "6.1"]
[White "Mammadova, Aysel"]
[Black "Vujcic, Milena"]
[Result "1/2-1/2"]
[ECO "C50"]
[WhiteElo "1893"]
[BlackElo "1987"]
[Annotator "NA RC"]
[PlyCount "155"]
[EventDate "2022.06.19"]
[EventType "swiss"]
[EventCountry "NET"]
[SourceTitle "playchess.com"]
[Source "ChessBase"]
[SourceQuality "1"]
[TimeControl "180+2"]

1. e4 {[%emt 0:00:02]} e5 {[%emt 0:00:04]} 2. Nf3 {[%emt 0:00:04]} Nc6 {[%emt 0:00:02]} 3. Bc4 {[%emt 0:00:04]} Bc5 {[%emt 0:00:01]} 4. O-O {[%emt 0:00:04]} Nf6 {[%emt 0:00:03]} 5. d4 {[%emt 0:00:03]} Bxd4 {[%emt 0:00:11]} 6. Nxd4 {[%emt 0:00:03]} Nxd4 {[%emt 0:00:03]} 7. f4 {[%emt 0:00:03]} d6 {[%emt 0:00:10]} 8. fxe5 {[%emt 0:00:02]} dxe5 {[%emt 0:00:02]} 9. Bg5 {[%emt 0:00:04]} Qd6 {[%emt 0:00:10]} 10. c3 {[%emt 0:00:06]} Ne6 {[%emt 0:00:47]} 11. Qxd6 {[%emt 0:00:05]} cxd6 {[%emt 0:00:01]} 12. Bxf6 {[%emt 0:00:02]} gxf6 {[%emt 0:00:02]} 13. Rxf6 {[%emt 0:00:03]} Ke7 {[%emt 0:00:01]} 14. Rf2 {[%emt 0:00:03]} Rg8 {[%emt 0:00:05]} 15. Nd2 {[%emt 0:00:03]} Bd7 {[%emt 0:00:04]} 16. Raf1 {[%emt 0:00:03]} Raf8 {[%emt 0:00:08]} 17. Kh1 {[%emt 0:00:03]} Bc6 {[%emt 0:00:04]} 18. Bxe6 {[%emt 0:00:07]} Kxe6 {[%emt 0:00:03]} 19. Rf6+ {[%emt 0:00:02]} Ke7 {[%emt 0:00:02]} 20. Rh6 {[%emt 0:00:07]} Rg7 {[%emt 0:00:02]} 21. Rff6 {[%emt 0:00:17]} Rd8 {[%emt 0:00:11]} 22. Rf2 {[%emt 0:00:02]} d5 {[%emt 0:00:18]} 23. exd5 {[%emt 0:00:03]} Rxd5 {[%emt 0:00:03]} 24. Kg1 {[%emt 0:00:06]} Rd6 {[%emt 0:00:11]} 25. Rxd6 {[%emt 0:00:03]} Kxd6 {[%emt 0:00:02]} 26. Nc4+ {[%emt 0:00:03]} Kd5 {[%emt 0:00:04]} 27. Ne3+ {[%emt 0:00:04]} Ke6 {[%emt 0:00:02]} 28. g3 {[%emt 0:00:05]} Rg8 {[%emt 0:00:03]} 29. Rd2 {[%emt 0:00:03]} f6 {[%emt 0:00:03]} 30. Kf2 {[%emt 0:00:03]} Rg7 {[%emt 0:00:06]} 31. h3 {[%emt 0:00:03]} Rd7 {[%emt 0:00:02]} 32. Rxd7 {[%emt 0:00:02]} Bxd7 {[%emt 0:00:02]} 33. g4 {[%emt 0:00:05]} Bc6 {[%emt 0:00:04]} 34. c4 {[%emt 0:00:05]} a6 {[%emt 0:00:03]} 35. Nf5 {[%emt 0:00:03]} Be4 {[%emt 0:00:03]} 36. Ne3 {[%emt 0:00:09]} b6 {[%emt 0:00:02]} 37. Ke2 {[%emt 0:00:03]} Bb1 {[%emt 0:00:02]} 38. a3 {[%emt 0:00:03]} Be4 {[%emt 0:00:06]} 39. h4 {[%emt 0:00:05]} Kd6 {[%emt 0:00:03]} 40. b4 {[%emt 0:00:05]} a5 {[%emt 0:00:04]} 41. Nd1 {[%emt 0:00:03]} axb4 {[%emt 0:00:03]} 42. axb4 {[%emt 0:00:04]} Bc2 {[%emt 0:00:02]} 43. Nb2 {[%emt 0:00:05]} Be4 {[%emt 0:00:05]} 44. Ke3 {[%emt 0:00:03]} Bb7 {[%emt 0:00:02]} 45. Nd3 {[%emt 0:00:03]} Bc8 {[%emt 0:00:05]} 46. Nf2 {[%emt 0:00:02]} Be6 {[%emt 0:00:02]} 47. Kd3 {[%emt 0:00:04]} Kc6 {[%emt 0:00:04]} 48. Ne4 {[%emt 0:00:04]} Bxg4 {[%emt 0:00:03]} 49. Nxf6 {[%emt 0:00:02]} Bf5+ {[%emt 0:00:01]} 50. Ke3 {[%emt 0:00:03]} Kd6 {[%emt 0:00:02]} 51. Nh5 {[%emt 0:00:06]} Be6 {[%emt 0:00:07]} 52. Kd3 {[%emt 0:00:03]} Bf7 {[%emt 0:00:09]} 53. Ng3 {[%emt 0:00:05]} Ke6 {[%emt 0:00:03]} 54. h5 {[%emt 0:00:07]} Kf6 {[%emt 0:00:02]} 55. c5 {[%emt 0:00:03]} bxc5 {[%emt 0:00:02]} 56. bxc5 {[%emt 0:00:02]} Ke6 {[%emt 0:00:04]} 57. Ke4 {[%emt 0:00:03]} Be8 {[%emt 0:00:03]} 58. h6 {[%emt 0:00:05]} Bc6+ {[%emt 0:00:02]} 59. Ke3 {[%emt 0:00:02]} Kd5 {[%emt 0:00:01]} 60. Nh5 {[%emt 0:00:03]} Kxc5 {[%emt 0:00:06]} 61. Nf6 {[%emt 0:00:02]} Ba4 {[%emt 0:00:08]} 62. Nxh7 {[%emt 0:00:02]} Bc2 {[%emt 0:00:02]} 63. Nf6 {[%emt 0:00:02]} Bg6 {[%emt 0:00:05]} 64. Nh5 {[%emt 0:00:06]} Kd6 {[%emt 0:00:02]} 65. Ng7 {[%emt 0:00:03]} Ke7 {[%emt 0:00:02]} 66. Nh5 {[%emt 0:00:03]} Kf7 {[%emt 0:00:04]} 67. Ng3 {[%emt 0:00:03]} Bh7 {[%emt 0:00:03]} 68. Ne2 {[%emt 0:00:05]} Kg6 {[%emt 0:00:02]} 69. Ke4 {[%emt 0:00:02]} Kxh6+ {[%emt 0:00:02]} 70. Kxe5 {[%emt 0:00:02]} Kg5 {[%emt 0:00:01]} 71. Nf4 {[%emt 0:00:02]} Kg4 {[%emt 0:00:02]} 72. Ne6 {[%emt 0:00:02]} Kg3 {[%emt 0:00:02]} 73. Ng7 {[%emt 0:00:04]} Kf2 {[%emt 0:00:02]} 74. Nf5 {[%emt 0:00:02]} Ke2 {[%emt 0:00:02]} 75. Nd6 {[%emt 0:00:03]} Kd2 {[%emt 0:00:01]} 76. Ne8 {[%emt 0:00:03]} Kc3 {[%emt 0:00:02]} 77. Nf6 {[%emt 0:00:03]} Kb4 {[%emt 0:00:01]} 78. Nxh7 {[%emt 0:00:02]} 1/2-1/2

[Event "Queens Festival Europe 2022"]
[Site "Tornelo"]
[Date "2022.06.19"]
[Round "6.1"]
[White "Lampard, Alice"]
[Black "Vicze, Zsofia"]
[Result "1-0"]
[ECO "D36"]
[WhiteElo "1756"]
[BlackElo "1749"]
[Annotator "NA RC"]
[PlyCount "85"]
[EventDate "2022.06.19"]
[EventType "swiss"]
[EventCountry "NET"]
[SourceTitle "playchess.com"]
[Source "ChessBase"]
[SourceQuality "1"]
[TimeControl "180+2"]

1. d4 {[%emt 0:00:02]} d5 {[%emt 0:00:07]} 2. c4 {[%emt 0:00:02]} e6 {[%emt 0:00:02]} 3. Nc3 {[%emt 0:00:02]} Nf6 {[%emt 0:00:02]} 4. cxd5 {[%emt 0:00:03]} exd5 {[%emt 0:00:02]} 5. Qc2 {[%emt 0:00:03]} c6 {[%emt 0:00:02]} 6. Bg5 {[%emt 0:00:03]} Bd6 {[%emt 0:00:03]} 7. e3 {[%emt 0:00:03]} Nbd7 {[%emt 0:00:04]} 8. Nf3 {[%emt 0:00:01]} O-O {[%emt 0:00:02]} 9. Bd3 {[%emt 0:00:01]} h6 {[%emt 0:00:02]} 10. Bh4 {[%emt 0:00:01]} Re8 {[%emt 0:00:02]} 11. O-O {[%emt 0:00:02]} Nf8 {[%emt 0:00:04]} 12. Rab1 {[%emt 0:00:04]} Bg4 {[%emt 0:00:02]} 13. Be2 {[%emt 0:00:07]} Ng6 {[%emt 0:00:03]} 14. Bg3 {[%emt 0:00:04]} Bxg3 {[%emt 0:00:17]} 15. hxg3 {[%emt 0:00:06]} Qd6 {[%emt 0:00:10]} 16. b4 {[%emt 0:00:25]} a6 {[%emt 0:00:09]} 17. a4 {[%emt 0:00:04]} Rac8 {[%emt 0:00:10]} 18. Qd3 {[%emt 0:00:17]} Ne4 {[%emt 0:00:10]} 19. Rfc1 {[%emt 0:00:41]} Ne7 {[%emt 0:00:33]} 20. Ne5 {[%emt 0:00:08]} Bxe2 {[%emt 0:00:05]} 21. Qxe2 {[%emt 0:00:06]} Nxc3 {[%emt 0:00:06]} 22. Rxc3 {[%emt 0:00:00]} Ng6 {[%emt 0:00:02]} 23. Nd3 {[%emt 0:00:08]} Qf6 {[%emt 0:00:10]} 24. Qf3 {[%emt 0:00:12]} Qd6 {[%emt 0:00:14]} 25. Nc5 {[%emt 0:00:08]} Re7 {[%emt 0:00:02]} 26. b5 {[%emt 0:00:13]} axb5 {[%emt 0:00:03]} 27. axb5 {[%emt 0:00:01]} Nf8 {[%emt 0:00:13]} 28. Nd3 {[%emt 0:00:13]} Ne6 {[%emt 0:00:06]} 29. Ne5 {[%emt 0:00:08]} Ng5 {[%emt 0:00:10]} 30. Qg4 {[%emt 0:00:14]} Ne4 {[%emt 0:00:08]} 31. Qxc8+ {[%emt 0:00:06]} Kh7 {[%emt 0:00:03]} 32. Rc2 {[%emt 0:00:08]} f6 {[%emt 0:00:05]} 33. Qf5+ {[%emt 0:00:02]} Kg8 {[%emt 0:00:04]} 34. Ng6 {[%emt 0:00:01]} Rc7 {[%emt 0:00:04]} 35. f3 {[%emt 0:00:01]} Ng5 {[%emt 0:00:03]} 36. f4 {[%emt 0:00:02]} Ne4 {[%emt 0:00:03]} 37. Qg4 {[%emt 0:00:02]} Kf7 {[%emt 0:00:05]} 38. Nh4 {[%emt 0:00:01]} Kg8 {[%emt 0:00:15]} 39. bxc6 {[%emt 0:00:02]} bxc6 {[%emt 0:00:03]} 40. Rb8+ {[%emt 0:00:01]} Kf7 {[%emt 0:00:02]} 41. Qg6+ {[%emt 0:00:01]} Ke7 {[%emt 0:00:03]} 42. Re8+ {[%emt 0:00:02]} Kd7 {[%emt 0:00:02]} 43. Qf7+ {[%emt 0:00:02]} 1-0

[Event "Queens Festival Europe 2022"]
[Site "Tornelo"]
[Date "2022.06.19"]
[Round "6.1"]
[White "Catabay, Mae Katelyn Rose"]
[Black "Aydogan, Arya"]
[Result "1/2-1/2"]
[ECO "D31"]
[WhiteElo "1321"]
[BlackElo "1409"]
[Annotator "NA RC"]
[PlyCount "138"]
[EventDate "2022.06.19"]
[EventType "swiss"]
[EventCountry "NET"]
[SourceTitle "playchess.com"]
[Source "ChessBase"]
[SourceQuality "1"]
[TimeControl "180+2"]

1. d4 {[%emt 0:00:02]} d5 {[%emt 0:00:04]} 2. c4 {[%emt 0:00:04]} e6 {[%emt 0:00:02]} 3. Nc3 {[%emt 0:00:02]} a6 {[%emt 0:00:01]} 4. g3 {[%emt 0:00:03]} Nf6 {[%emt 0:00:03]} 5. Bg2 {[%emt 0:00:02]} Be7 {[%emt 0:00:02]} 6. Nf3 {[%emt 0:00:02]} O-O {[%emt 0:00:02]} 7. O-O {[%emt 0:00:02]} b6 {[%emt 0:00:05]} 8. Bd2 {[%emt 0:00:11]} Bb7 {[%emt 0:00:02]} 9. cxd5 {[%emt 0:00:04]} exd5 {[%emt 0:00:02]} 10. Rc1 {[%emt 0:00:05]} Nbd7 {[%emt 0:00:05]} 11. Re1 {[%emt 0:00:12]} Re8 {[%emt 0:00:06]} 12. a3 {[%emt 0:00:07]} Bf8 {[%emt 0:00:10]} 13. e3 {[%emt 0:00:02]} c5 {[%emt 0:00:04]} 14. Ne2 {[%emt 0:00:07]} c4 {[%emt 0:00:02]} 15. Nf4 {[%emt 0:00:03]} Ne4 {[%emt 0:00:07]} 16. Bc3 {[%emt 0:00:21]} b5 {[%emt 0:00:07]} 17. Nd2 {[%emt 0:00:04]} Nxd2 {[%emt 0:00:28]} 18. Qxd2 {[%emt 0:00:03]} Nf6 {[%emt 0:00:03]} 19. h3 {[%emt 0:00:08]} a5 {[%emt 0:00:05]} 20. g4 {[%emt 0:00:04]} h6 {[%emt 0:00:08]} 21. f3 {[%emt 0:00:06]} Qb6 {[%emt 0:00:03]} 22. Qc2 {[%emt 0:00:13]} b4 {[%emt 0:00:04]} 23. axb4 {[%emt 0:00:04]} axb4 {[%emt 0:00:01]} 24. Bd2 {[%emt 0:00:01]} Bd6 {[%emt 0:00:13]} 25. h4 {[%emt 0:00:10]} Bxf4 {[%emt 0:00:04]} 26. exf4 {[%emt 0:00:01]} Qxd4+ {[%emt 0:00:02]} 27. Kh2 {[%emt 0:00:05]} Qb6 {[%emt 0:00:17]} 28. Qf5 {[%emt 0:00:18]} g6 {[%emt 0:00:12]} 29. Qc2 {[%emt 0:00:04]} Nd7 {[%emt 0:00:04]} 30. f5 {[%emt 0:00:04]} Kg7 {[%emt 0:00:21]} 31. Ra1 {[%emt 0:00:17]} Nc5 {[%emt 0:00:13]} 32. Rxa8 {[%emt 0:00:19]} Rxa8 {[%emt 0:00:03]} 33. Re7 {[%emt 0:00:08]} Qd6+ {[%emt 0:00:03]} 34. f4 {[%emt 0:00:09]} Qxe7 {[%emt 0:00:02]} 35. Bxb4 {[%emt 0:00:06]} Qc7 {[%emt 0:00:05]} 36. Qc3+ {[%emt 0:00:05]} Kg8 {[%emt 0:00:08]} 37. Qe3 {[%emt 0:00:04]} Ne4 {[%emt 0:00:07]} 38. fxg6 {[%emt 0:00:04]} fxg6 {[%emt 0:00:02]} 39. Bxe4 {[%emt 0:00:02]} dxe4 {[%emt 0:00:03]} 40. Bc3 {[%emt 0:00:01]} Rf8 {[%emt 0:00:05]} 41. Be5 {[%emt 0:00:02]} Qf7 {[%emt 0:00:04]} 42. Qd2 {[%emt 0:00:03]} Bc8 {[%emt 0:00:04]} 43. g5 {[%emt 0:00:02]} h5 {[%emt 0:00:03]} 44. Qd4 {[%emt 0:00:02]} Bf5 {[%emt 0:00:03]} 45. Qc5 {[%emt 0:00:02]} Re8 {[%emt 0:00:02]} 46. Qe3 {[%emt 0:00:01]} Qe7 {[%emt 0:00:03]} 47. Qd4 {[%emt 0:00:02]} Qf7 {[%emt 0:00:01]} 48. Qd6 {[%emt 0:00:02]} Re6 {[%emt 0:00:03]} 49. Qd8+ {[%emt 0:00:01]} Re8 {[%emt 0:00:02]} 50. Qd6 {[%emt 0:00:02]} Qe6 {[%emt 0:00:02]} 51. Qd4 {[%emt 0:00:02]} Rc8 {[%emt 0:00:03]} 52. Qa7 {[%emt 0:00:02]} Qd7 {[%emt 0:00:02]} 53. Qb6 {[%emt 0:00:05]} Rc6 {[%emt 0:00:04]} 54. Qb8+ {[%emt 0:00:02]} Rc8 {[%emt 0:00:02]} 55. Qb6 {[%emt 0:00:01]} Qc6 {[%emt 0:00:01]} 56. Qb4 {[%emt 0:00:02]} Qd5 {[%emt 0:00:05]} 57. Qe7 {[%emt 0:00:02]} Qd2+ {[%emt 0:00:01]} 58. Kg3 {[%emt 0:00:02]} Qd3+ {[%emt 0:00:02]} 59. Kg2 {[%emt 0:00:01]} Qd7 {[%emt 0:00:02]} 60. Qf6 {[%emt 0:00:03]} Qd2+ {[%emt 0:00:04]} 61. Kg3 {[%emt 0:00:01]} Qe3+ {[%emt 0:00:01]} 62. Kg2 {[%emt 0:00:02]} Bh3+ {[%emt 0:00:02]} 63. Kh2 {[%emt 0:00:01]} Qf2+ {[%emt 0:00:05]} 64. Kxh3 {[%emt 0:00:01]} Qf3+ {[%emt 0:00:01]} 65. Kh2 {[%emt 0:00:02]} Qf2+ {[%emt 0:00:01]} 66. Kh1 {[%emt 0:00:01]} Qf1+ {[%emt 0:00:02]} 67. Kh2 {[%emt 0:00:02]} Qf2+ {[%emt 0:00:01]} 68. Kh3 {[%emt 0:00:02]} Qf3+ {[%emt 0:00:01]} 69. Kh2 {[%emt 0:00:01]} Qf2+ {[%emt 0:00:02]} 1/2-1/2

[Event "Queens Festival Europe 2022"]
[Site "Tornelo"]
[Date "2022.06.19"]
[Round "6.2"]
[White "Sikorova, Olga"]
[Black "Machlik, Monika"]
[Result "1-0"]
[ECO "A29"]
[WhiteElo "2173"]
[BlackElo "2134"]
[Annotator "NA RC"]
[PlyCount "99"]
[EventDate "2022.06.19"]
[EventType "swiss"]
[EventCountry "NET"]
[SourceTitle "playchess.com"]
[Source "ChessBase"]
[SourceQuality "1"]
[TimeControl "180+2"]

1. c4 {[%emt 0:00:02]} e5 {[%emt 0:00:05]} 2. g3 {[%emt 0:00:02]} Nf6 {[%emt 0:00:02]} 3. Bg2 {[%emt 0:00:01]} d5 {[%emt 0:00:01]} 4. cxd5 {[%emt 0:00:02]} Nxd5 {[%emt 0:00:02]} 5. Nc3 {[%emt 0:00:01]} Nb6 {[%emt 0:00:02]} 6. Nf3 {[%emt 0:00:13]} Nc6 {[%emt 0:00:02]} 7. O-O {[%emt 0:00:01]} Be7 {[%emt 0:00:02]} 8. b3 {[%emt 0:00:01]} O-O {[%emt 0:00:03]} 9. Bb2 {[%emt 0:00:02]} f6 {[%emt 0:00:11]} 10. d3 {[%emt 0:00:04]} Be6 {[%emt 0:00:02]} 11. Rc1 {[%emt 0:00:02]} Nd5 {[%emt 0:00:07]} 12. e4 {[%emt 0:00:17]} Ndb4 {[%emt 0:00:14]} 13. Ne1 {[%emt 0:00:08]} Nd4 {[%emt 0:00:11]} 14. h3 {[%emt 0:00:32]} Qd7 {[%emt 0:00:16]} 15. Kh2 {[%emt 0:00:03]} Rad8 {[%emt 0:00:04]} 16. f4 {[%emt 0:00:10]} Ndc6 {[%emt 0:00:11]} 17. f5 {[%emt 0:00:05]} Bf7 {[%emt 0:00:03]} 18. Rf3 {[%emt 0:00:03]} Nd4 {[%emt 0:00:10]} 19. Rf2 {[%emt 0:00:01]} Bc5 {[%emt 0:00:18]} 20. Rd2 {[%emt 0:00:03]} Be7 {[%emt 0:00:16]} 21. Rf2 {[%emt 0:00:11]} Rfe8 {[%emt 0:00:03]} 22. Bf1 {[%emt 0:00:03]} Ndc6 {[%emt 0:00:17]} 23. Rg2 {[%emt 0:00:09]} Bc5 {[%emt 0:00:04]} 24. Qf3 {[%emt 0:00:04]} Nd4 {[%emt 0:00:04]} 25. Qd1 {[%emt 0:00:03]} Be7 {[%emt 0:00:03]} 26. g4 {[%emt 0:00:02]} Na6 {[%emt 0:00:10]} 27. h4 {[%emt 0:00:06]} Rf8 {[%emt 0:00:04]} 28. g5 {[%emt 0:00:02]} Qe8 {[%emt 0:00:03]} 29. Qd2 {[%emt 0:00:16]} Bh5 {[%emt 0:00:14]} 30. Qf2 {[%emt 0:00:02]} Nb4 {[%emt 0:00:05]} 31. Qg3 {[%emt 0:00:09]} a6 {[%emt 0:00:06]} 32. a3 {[%emt 0:00:10]} Nbc6 {[%emt 0:00:04]} 33. Nd5 {[%emt 0:00:02]} Rxd5 {[%emt 0:00:18]} 34. exd5 {[%emt 0:00:02]} Na5 {[%emt 0:00:02]} 35. Rxc7 {[%emt 0:00:04]} Rf7 {[%emt 0:00:04]} 36. g6 {[%emt 0:00:04]} hxg6 {[%emt 0:00:03]} 37. fxg6 {[%emt 0:00:02]} Rf8 {[%emt 0:00:01]} 38. b4 {[%emt 0:00:05]} Nab3 {[%emt 0:00:02]} 39. Rxb7 {[%emt 0:00:03]} Bd6 {[%emt 0:00:02]} 40. Kh1 {[%emt 0:00:10]} Qc8 {[%emt 0:00:02]} 41. Rb6 {[%emt 0:00:06]} Qc7 {[%emt 0:00:02]} 42. Rxa6 {[%emt 0:00:02]} Rc8 {[%emt 0:00:08]} 43. Bxd4 {[%emt 0:00:16]} Nxd4 {[%emt 0:00:02]} 44. a4 {[%emt 0:00:03]} Rd8 {[%emt 0:00:01]} 45. Qh3 {[%emt 0:00:02]} Qb7 {[%emt 0:00:03]} 46. b5 {[%emt 0:00:09]} Qxd5 {[%emt 0:00:02]} 47. b6 {[%emt 0:00:02]} Qc6 {[%emt 0:00:03]} 48. a5 {[%emt 0:00:01]} Qb5 {[%emt 0:00:02]} 49. Ra7 {[%emt 0:00:02]} Nc6 {[%emt 0:00:02]} 50. Qe6+ {[%emt 0:00:02]} 1-0